[Event "Titled Tuesday Blitz November 29 Late 2022"]
[White "Ilkhomi, Jaloliddin"]
[Black "Gerbelli Neto, Eduardo"]
[WhiteFideId "14700948"]
[BlackFideId "2103281"]
[WhiteElo "2045"]
[BlackElo "2178"]
[Result "1-0"]
[Round "05"]
[TimeControl "180+1"]
[Date "2022.11.30"]
[WhiteClock "0:01:05"]
[BlackClock "0:00:52"]

1. d4 {[%clk 0:03:00]}  d5 {[%clk 0:02:59]} 2. Bf4 {[%clk 0:02:59]}  Nf6 {[%clk 0:02:59]} 3. e3 {[%clk 0:03:00]}  Bf5 {[%clk 0:02:59]} 4. Bd3 {[%clk 0:02:46]}  Bg6 {[%clk 0:02:59]} 5. Nf3 {[%clk 0:02:45]}  e6 {[%clk 0:02:58]} 6. Bxg6 {[%clk 0:02:45]}  hxg6 {[%clk 0:02:58]} 7. Nbd2 {[%clk 0:02:46]}  Nbd7 {[%clk 0:02:57]} 8. Ne5 {[%clk 0:02:46]}  Nh5 {[%clk 0:02:56]} 9. c3 {[%clk 0:02:44]}  Nxf4 {[%clk 0:02:54]} 10. exf4 {[%clk 0:02:45]}  c6 {[%clk 0:02:19]} 11. Ndf3 {[%clk 0:02:41]}  Bd6 {[%clk 0:02:13]} 12. Qe2 {[%clk 0:02:38]}  Nf6 {[%clk 0:02:08]} 13. O-O-O {[%clk 0:01:58]}  Ne4 {[%clk 0:02:04]} 14. Nd2 {[%clk 0:01:51]}  Nxd2 {[%clk 0:01:54]} 15. Rxd2 {[%clk 0:01:52]}  Qa5 {[%clk 0:01:40]} 16. Nxg6 {[%clk 0:01:32]}  fxg6 {[%clk 0:01:31]} 17. Qxe6+ {[%clk 0:01:31]}  Be7 {[%clk 0:01:32]} 18. Re1 {[%clk 0:01:31]}  Qc7 {[%clk 0:01:32]} 19. Rde2 {[%clk 0:01:32]}  Kf8 {[%clk 0:01:23]} 20. Qxe7+ {[%clk 0:01:29]}  Qxe7 {[%clk 0:01:21]} 21. Rxe7 {[%clk 0:01:29]}  Rxh2 {[%clk 0:01:14]} 22. Rxb7 {[%clk 0:01:27]}  Re8 {[%clk 0:01:08]} 23. Rxe8+ {[%clk 0:01:21]}  Kxe8 {[%clk 0:01:09]} 24. Rxg7 {[%clk 0:01:15]}  Rxg2 {[%clk 0:01:09]} 25. f5 {[%clk 0:01:14]}  Rxf2 {[%clk 0:01:06]} 26. fxg6 {[%clk 0:01:13]}  Rg2 {[%clk 0:01:00]} 27. Rxa7 {[%clk 0:01:11]}  Rxg6 {[%clk 0:00:59]} 28. a4 {[%clk 0:01:12]}  Kd8 {[%clk 0:00:55]} 29. Kc2 {[%clk 0:01:11]}  Kc8 {[%clk 0:00:56]} 30. Kb3 {[%clk 0:01:12]}  Kb8 {[%clk 0:00:56]} 31. Rf7 {[%clk 0:01:12]}  Rg2 {[%clk 0:00:54]} 32. a5 {[%clk 0:01:08]}  Ka8 {[%clk 0:00:54]} 33. Ka3 {[%clk 0:01:08]}  Rc2 {[%clk 0:00:52]} 34. Rc7 {[%clk 0:01:05]} 1-0


[Site "https://www.chess.com"]

[Event "Titled Tuesday Blitz November 29 Late 2022"]
[White "Jaracz, Pawel"]
[Black "Sadovsky, Artem"]
[WhiteFideId "1102222"]
[BlackFideId "4155840"]
[WhiteElo "2459"]
[BlackElo "2312"]
[Result "1-0"]
[Round "05"]
[TimeControl "180+1"]
[Date "2022.11.30"]
[WhiteClock "0:00:21"]
[BlackClock "0:00:05"]

1. e4 {[%clk 0:03:00]}  g6 {[%clk 0:02:27]} 2. d4 {[%clk 0:03:00]}  Bg7 {[%clk 0:02:27]} 3. Nc3 {[%clk 0:03:00]}  c6 {[%clk 0:02:22]} 4. Nf3 {[%clk 0:02:59]}  d5 {[%clk 0:02:22]} 5. h3 {[%clk 0:02:59]}  dxe4 {[%clk 0:02:21]} 6. Nxe4 {[%clk 0:02:59]}  Nd7 {[%clk 0:02:22]} 7. Bc4 {[%clk 0:02:58]}  Ngf6 {[%clk 0:02:22]} 8. Nxf6+ {[%clk 0:02:51]}  Nxf6 {[%clk 0:02:23]} 9. O-O {[%clk 0:02:51]}  O-O {[%clk 0:02:19]} 10. Qe2 {[%clk 0:02:51]}  Qd6 {[%clk 0:02:01]} 11. Bg5 {[%clk 0:02:48]}  Bf5 {[%clk 0:01:55]} 12. Rad1 {[%clk 0:02:42]}  Ne4 {[%clk 0:01:50]} 13. Be3 {[%clk 0:02:40]}  Nf6 {[%clk 0:01:37]} 14. Bb3 {[%clk 0:02:34]}  a5 {[%clk 0:01:35]} 15. a4 {[%clk 0:02:31]}  Nd5 {[%clk 0:01:33]} 16. Bg5 {[%clk 0:02:30]}  Rae8 {[%clk 0:01:31]} 17. Rfe1 {[%clk 0:02:27]}  Nf4 {[%clk 0:01:27]} 18. Qd2 {[%clk 0:02:25]}  Ne6 {[%clk 0:01:23]} 19. Qxa5 {[%clk 0:02:13]}  Nxg5 {[%clk 0:01:00]} 20. Nxg5 {[%clk 0:02:14]}  Bxd4 {[%clk 0:00:56]} 21. Nf3 {[%clk 0:01:46]}  Qc5 {[%clk 0:00:49]} 22. Qd2 {[%clk 0:01:37]}  Bxb2 {[%clk 0:00:47]} 23. Qf4 {[%clk 0:01:28]}  Bc3 {[%clk 0:00:43]} 24. Re3 {[%clk 0:01:27]}  Bf6 {[%clk 0:00:36]} 25. Rde1 {[%clk 0:01:26]}  Kg7 {[%clk 0:00:30]} 26. g4 {[%clk 0:01:25]}  Bc8 {[%clk 0:00:14]} 27. g5 {[%clk 0:01:23]}  Bb2 {[%clk 0:00:15]} 28. Ne5 {[%clk 0:01:22]}  Bf5 {[%clk 0:00:12]} 29. Nc4 {[%clk 0:01:18]}  Bd4 {[%clk 0:00:11]} 30. R3e2 {[%clk 0:01:00]}  b5 {[%clk 0:00:10]} 31. axb5 {[%clk 0:00:58]}  cxb5 {[%clk 0:00:11]} 32. Nd6 {[%clk 0:00:56]}  e5 {[%clk 0:00:05]} 33. Nxf5+ {[%clk 0:00:53]}  gxf5 {[%clk 0:00:05]} 34. Qxf5 {[%clk 0:00:54]}  Qc3 {[%clk 0:00:03]} 35. Kg2 {[%clk 0:00:50]}  Rd8 {[%clk 0:00:03]} 36. Rd1 {[%clk 0:00:46]}  Rd6 {[%clk 0:00:03]} 37. Rd3 {[%clk 0:00:31]}  Qc6+ {[%clk 0:00:04]} 38. Kh2 {[%clk 0:00:28]}  Rg6 {[%clk 0:00:05]} 39. h4 {[%clk 0:00:28]}  h5 {[%clk 0:00:04]} 40. Re4 {[%clk 0:00:28]}  Qd6 {[%clk 0:00:03]} 41. Rf3 {[%clk 0:00:28]}  Qe7 {[%clk 0:00:02]} 42. c3 {[%clk 0:00:29]}  Bc5 {[%clk 0:00:02]} 43. Rxe5 {[%clk 0:00:29]}  Bd6 {[%clk 0:00:02]} 44. Re3 {[%clk 0:00:29]}  Qc7 {[%clk 0:00:01]} 45. f4 {[%clk 0:00:29]}  Bxe5 {[%clk 0:00:02]} 46. Rxe5 {[%clk 0:00:30]}  Rd8 {[%clk 0:00:02]} 47. Bd5 {[%clk 0:00:29]}  Rdd6 {[%clk 0:00:01]} 48. Qe4 {[%clk 0:00:27]}  Qd7 {[%clk 0:00:02]} 49. f5 {[%clk 0:00:28]}  Rxd5 {[%clk 0:00:02]} 50. Rxd5 {[%clk 0:00:24]}  Qc7+ {[%clk 0:00:02]} 51. Kg2 {[%clk 0:00:24]}  Rc6 {[%clk 0:00:03]} 52. f6+ {[%clk 0:00:23]}  Kf8 {[%clk 0:00:02]} 53. Re5 {[%clk 0:00:24]}  Re6 {[%clk 0:00:02]} 54. Rxe6 {[%clk 0:00:23]}  fxe6 {[%clk 0:00:03]} 55. Qxe6 {[%clk 0:00:21]}  Qc6+ {[%clk 0:00:03]} 56. Qxc6 {[%clk 0:00:21]}  Kf7 {[%clk 0:00:02]} 57. Qd7+ {[%clk 0:00:20]}  Kg6 {[%clk 0:00:03]} 58. Qe6 {[%clk 0:00:20]}  b4 {[%clk 0:00:04]} 59. f7+ {[%clk 0:00:20]}  Kg7 {[%clk 0:00:04]} 60. Qf6+ {[%clk 0:00:20]}  Kf8 {[%clk 0:00:05]} 61. g6 {[%clk 0:00:20]}  b3 {[%clk 0:00:05]} 62. g7# {[%clk 0:00:21]} 1-0


[Site "https://www.chess.com"]

[Event "Titled Tuesday Blitz November 29 Late 2022"]
[White "Joubert, Dantelle"]
[Black "Coelho, Ramyres Santana"]
[WhiteFideId "14310813"]
[BlackFideId "2120690"]
[WhiteElo "1507"]
[BlackElo "1888"]
[Result "0-1"]
[Round "05"]
[TimeControl "180+1"]
[Date "2022.11.30"]
[WhiteClock "0:00:39"]
[BlackClock "0:00:23"]

1. d4 {[%clk 0:03:00]}  Nf6 {[%clk 0:02:55]} 2. c4 {[%clk 0:03:00]}  g6 {[%clk 0:02:55]} 3. Nc3 {[%clk 0:02:59]}  d5 {[%clk 0:02:47]} 4. Nf3 {[%clk 0:02:58]}  Bg7 {[%clk 0:02:46]} 5. Qb3 {[%clk 0:02:58]}  dxc4 {[%clk 0:02:42]} 6. Qxc4 {[%clk 0:02:58]}  O-O {[%clk 0:02:43]} 7. e4 {[%clk 0:02:56]}  c6 {[%clk 0:02:44]} 8. Be2 {[%clk 0:02:55]}  b5 {[%clk 0:02:43]} 9. Qd3 {[%clk 0:02:54]}  e6 {[%clk 0:02:12]} 10. Bg5 {[%clk 0:02:51]}  h6 {[%clk 0:02:11]} 11. Bh4 {[%clk 0:02:50]}  g5 {[%clk 0:02:10]} 12. Bg3 {[%clk 0:02:50]}  Nh5 {[%clk 0:02:08]} 13. Rd1 {[%clk 0:02:44]}  Nxg3 {[%clk 0:02:04]} 14. hxg3 {[%clk 0:02:43]}  b4 {[%clk 0:02:04]} 15. Nb1 {[%clk 0:02:27]}  Ba6 {[%clk 0:02:04]} 16. Qe3 {[%clk 0:02:24]}  Bxe2 {[%clk 0:02:04]} 17. Kxe2 {[%clk 0:02:24]}  Qa5 {[%clk 0:01:59]} 18. a3 {[%clk 0:02:15]}  Na6 {[%clk 0:01:51]} 19. e5 {[%clk 0:02:08]}  c5 {[%clk 0:01:19]} 20. Qe4 {[%clk 0:02:02]}  cxd4 {[%clk 0:01:00]} 21. Rxd4 {[%clk 0:01:47]}  bxa3 {[%clk 0:00:58]} 22. Nxa3 {[%clk 0:01:46]}  Nc5 {[%clk 0:00:57]} 23. Qc2 {[%clk 0:01:35]}  Rab8 {[%clk 0:00:55]} 24. Nxg5 {[%clk 0:01:33]}  Qa6+ {[%clk 0:00:45]} 25. Kd1 {[%clk 0:01:27]}  Rfd8 {[%clk 0:00:28]} 26. Qxc5 {[%clk 0:00:48]}  hxg5 {[%clk 0:00:25]} 27. Kc1 {[%clk 0:00:39]}  Rdc8 {[%clk 0:00:23]} 0-1


[Site "https://www.chess.com"]

[Event "Titled Tuesday Blitz November 29 Late 2022"]
[White "Kleiman, Jake"]
[Black "Iinuma, Paul Y"]
[WhiteFideId "2020041"]
[BlackFideId "2031809"]
[WhiteElo "2614"]
[BlackElo "2066"]
[Result "1-0"]
[Round "05"]
[TimeControl "180+1"]
[Date "2022.11.30"]
[WhiteClock "0:00:17"]
[BlackClock "0:00:37"]

1. e4 {[%clk 0:03:00]}  c5 {[%clk 0:02:59]} 2. c3 {[%clk 0:02:59]}  d5 {[%clk 0:02:51]} 3. exd5 {[%clk 0:03:00]}  Qxd5 {[%clk 0:02:52]} 4. d4 {[%clk 0:03:00]}  Nc6 {[%clk 0:02:52]} 5. Nf3 {[%clk 0:03:01]}  Bf5 {[%clk 0:02:53]} 6. dxc5 {[%clk 0:02:59]}  Qxd1+ {[%clk 0:02:35]} 7. Kxd1 {[%clk 0:03:00]}  O-O-O+ {[%clk 0:02:34]} 8. Ke1 {[%clk 0:03:00]}  e5 {[%clk 0:02:31]} 9. Be3 {[%clk 0:03:00]}  Nf6 {[%clk 0:02:31]} 10. Nbd2 {[%clk 0:03:00]}  Nd5 {[%clk 0:02:30]} 11. Nb3 {[%clk 0:03:00]}  f6 {[%clk 0:02:21]} 12. Bb5 {[%clk 0:02:55]}  g5 {[%clk 0:02:07]} 13. Nfd2 {[%clk 0:02:44]}  Be7 {[%clk 0:02:03]} 14. h4 {[%clk 0:02:35]}  h6 {[%clk 0:01:57]} 15. a4 {[%clk 0:02:21]}  Kc7 {[%clk 0:01:56]} 16. a5 {[%clk 0:02:19]}  a6 {[%clk 0:01:56]} 17. Be2 {[%clk 0:02:18]}  Be6 {[%clk 0:01:45]} 18. Nc4 {[%clk 0:01:59]}  f5 {[%clk 0:01:45]} 19. Rd1 {[%clk 0:01:44]}  f4 {[%clk 0:01:41]} 20. Bc1 {[%clk 0:01:44]}  gxh4 {[%clk 0:01:39]} 21. Nbd2 {[%clk 0:01:04]}  Bxc5 {[%clk 0:01:33]} 22. Rxh4 {[%clk 0:01:04]}  Be7 {[%clk 0:01:27]} 23. Rh5 {[%clk 0:00:59]}  Nf6 {[%clk 0:01:22]} 24. Rh1 {[%clk 0:00:57]}  Bd5 {[%clk 0:01:18]} 25. f3 {[%clk 0:00:54]}  h5 {[%clk 0:01:12]} 26. b4 {[%clk 0:00:53]}  Rhg8 {[%clk 0:01:12]} 27. Kf2 {[%clk 0:00:52]}  Be6 {[%clk 0:01:08]} 28. Nb6 {[%clk 0:00:49]}  Bf5 {[%clk 0:01:00]} 29. Ndc4 {[%clk 0:00:45]}  Nd5 {[%clk 0:01:01]} 30. Nxd5+ {[%clk 0:00:45]}  Kb8 {[%clk 0:00:53]} 31. Nxe7 {[%clk 0:00:43]}  Nxe7 {[%clk 0:00:54]} 32. Nxe5 {[%clk 0:00:40]}  Nd5 {[%clk 0:00:53]} 33. c4 {[%clk 0:00:30]}  Nxb4 {[%clk 0:00:49]} 34. Rxd8+ {[%clk 0:00:30]}  Rxd8 {[%clk 0:00:50]} 35. Bxf4 {[%clk 0:00:25]}  Ka8 {[%clk 0:00:50]} 36. Rxh5 {[%clk 0:00:22]}  Bb1 {[%clk 0:00:51]} 37. Bg5 {[%clk 0:00:20]}  Rf8 {[%clk 0:00:50]} 38. Rh6 {[%clk 0:00:19]}  Re8 {[%clk 0:00:50]} 39. f4 {[%clk 0:00:18]}  Na2 {[%clk 0:00:49]} 40. Bf3 {[%clk 0:00:18]}  Nc3 {[%clk 0:00:47]} 41. Rxa6+ {[%clk 0:00:17]}  Kb8 {[%clk 0:00:47]} 42. Rb6 {[%clk 0:00:18]}  Be4 {[%clk 0:00:44]} 43. Rb3 {[%clk 0:00:17]}  Bxf3 {[%clk 0:00:38]} 44. Kxf3 {[%clk 0:00:17]}  Na4 {[%clk 0:00:37]} 45. a6 {[%clk 0:00:16]}  Ka7 {[%clk 0:00:37]} 46. Rxb7+ {[%clk 0:00:16]}  Kxa6 {[%clk 0:00:37]} 47. Re7 {[%clk 0:00:17]}  Rh8 {[%clk 0:00:35]} 48. f5 {[%clk 0:00:17]}  Nc5 {[%clk 0:00:35]} 49. f6 {[%clk 0:00:17]}  Kb6 {[%clk 0:00:33]} 50. f7 {[%clk 0:00:16]}  Nb3 {[%clk 0:00:31]} 51. Nd7+ {[%clk 0:00:15]}  Kc6 {[%clk 0:00:31]} 52. f8=Q {[%clk 0:00:16]}  Rxf8+ {[%clk 0:00:31]} 53. Nxf8 {[%clk 0:00:15]}  Nd4+ {[%clk 0:00:32]} 54. Ke4 {[%clk 0:00:14]}  Nb3 {[%clk 0:00:32]} 55. Ne6 {[%clk 0:00:14]}  Nc5+ {[%clk 0:00:32]} 56. Nxc5 {[%clk 0:00:13]}  Kxc5 {[%clk 0:00:33]} 57. Rd7 {[%clk 0:00:14]}  Kb4 {[%clk 0:00:34]} 58. c5 {[%clk 0:00:14]}  Kc3 {[%clk 0:00:35]} 59. c6 {[%clk 0:00:15]}  Kc4 {[%clk 0:00:36]} 60. c7 {[%clk 0:00:15]}  Kb5 {[%clk 0:00:37]} 61. c8=Q {[%clk 0:00:16]}  Kb6 {[%clk 0:00:36]} 62. Rb7+ {[%clk 0:00:17]}  Ka5 {[%clk 0:00:37]} 63. Qa8# {[%clk 0:00:17]} 1-0


[Site "https://www.chess.com"]

[Event "Titled Tuesday Blitz November 29 Late 2022"]
[White "Kobo, Ori"]
[Black "Svane, Frederik"]
[WhiteFideId "2812320"]
[BlackFideId "12923044"]
[WhiteElo "2447"]
[BlackElo "2466"]
[Result "1-0"]
[Round "05"]
[TimeControl "180+1"]
[Date "2022.11.30"]
[WhiteClock "0:00:08"]
[BlackClock "0:00:00"]

1. Nf3 {[%clk 0:03:00]}  d5 {[%clk 0:03:00]} 2. g3 {[%clk 0:03:00]}  Nd7 {[%clk 0:03:00]} 3. d4 {[%clk 0:03:00]}  Nb6 {[%clk 0:03:01]} 4. Nc3 {[%clk 0:03:00]}  Nf6 {[%clk 0:02:58]} 5. a4 {[%clk 0:02:57]}  a5 {[%clk 0:02:57]} 6. Bg2 {[%clk 0:02:55]}  g6 {[%clk 0:02:58]} 7. O-O {[%clk 0:02:54]}  Bg7 {[%clk 0:02:58]} 8. b3 {[%clk 0:02:47]}  O-O {[%clk 0:02:57]} 9. Ba3 {[%clk 0:02:47]}  Re8 {[%clk 0:02:53]} 10. e3 {[%clk 0:02:42]}  c6 {[%clk 0:02:51]} 11. Ne5 {[%clk 0:02:29]}  h5 {[%clk 0:02:38]} 12. Qe2 {[%clk 0:02:26]}  Bf5 {[%clk 0:02:36]} 13. h3 {[%clk 0:02:21]}  Qc8 {[%clk 0:02:32]} 14. Kh2 {[%clk 0:02:21]}  Nbd7 {[%clk 0:02:17]} 15. f4 {[%clk 0:02:17]}  c5 {[%clk 0:02:16]} 16. Nxd5 {[%clk 0:02:11]}  Nxe5 {[%clk 0:01:39]} 17. fxe5 {[%clk 0:01:45]}  Nxd5 {[%clk 0:01:39]} 18. Bxd5 {[%clk 0:01:46]}  cxd4 {[%clk 0:01:39]} 19. exd4 {[%clk 0:01:44]}  e6 {[%clk 0:01:39]} 20. Bc4 {[%clk 0:01:34]}  Rd8 {[%clk 0:01:20]} 21. Rad1 {[%clk 0:01:22]}  Qc6 {[%clk 0:01:19]} 22. Bd6 {[%clk 0:01:11]}  Rac8 {[%clk 0:01:13]} 23. c3 {[%clk 0:01:01]}  Be4 {[%clk 0:00:34]} 24. Qf2 {[%clk 0:00:52]}  Qe8 {[%clk 0:00:34]} 25. Bb5 {[%clk 0:00:43]}  Bc6 {[%clk 0:00:34]} 26. c4 {[%clk 0:00:42]}  Bf8 {[%clk 0:00:30]} 27. Bxc6 {[%clk 0:00:38]}  Rxc6 {[%clk 0:00:12]} 28. c5 {[%clk 0:00:33]}  b6 {[%clk 0:00:12]} 29. Rd3 {[%clk 0:00:30]}  bxc5 {[%clk 0:00:09]} 30. dxc5 {[%clk 0:00:30]}  Bg7 {[%clk 0:00:09]} 31. Rf3 {[%clk 0:00:28]}  Rd7 {[%clk 0:00:09]} 32. Qe2 {[%clk 0:00:28]}  Rb7 {[%clk 0:00:08]} 33. Qe4 {[%clk 0:00:24]}  Rb4 {[%clk 0:00:09]} 34. Qe2 {[%clk 0:00:23]}  Rb7 {[%clk 0:00:09]} 35. h4 {[%clk 0:00:15]}  Qc8 {[%clk 0:00:09]} 36. Qf2 {[%clk 0:00:15]}  Qe8 {[%clk 0:00:09]} 37. Re3 {[%clk 0:00:14]}  Rc8 {[%clk 0:00:09]} 38. Qf3 {[%clk 0:00:15]}  Rc6 {[%clk 0:00:09]} 39. Rf2 {[%clk 0:00:14]}  Rb4 {[%clk 0:00:09]} 40. Re4 {[%clk 0:00:13]}  Rb7 {[%clk 0:00:10]} 41. Qe3 {[%clk 0:00:14]}  Rc8 {[%clk 0:00:08]} 42. Ref4 {[%clk 0:00:14]}  Qc6 {[%clk 0:00:08]} 43. Qf3 {[%clk 0:00:14]}  Qxf3 {[%clk 0:00:04]} 44. R2xf3 {[%clk 0:00:15]}  Bf8 {[%clk 0:00:04]} 45. Rc4 {[%clk 0:00:13]}  Bg7 {[%clk 0:00:04]} 46. c6 {[%clk 0:00:11]}  Rb6 {[%clk 0:00:05]} 47. c7 {[%clk 0:00:12]}  f6 {[%clk 0:00:03]} 48. Rd3 {[%clk 0:00:09]}  Kf7 {[%clk 0:00:00]} 49. Bc5 {[%clk 0:00:08]} 1-0


[Site "https://www.chess.com"]

[Event "Titled Tuesday Blitz November 29 Late 2022"]
[White "Kovacevic, Radmila"]
[Black "Hoffmann, Asa"]
[WhiteFideId "933171"]
[BlackFideId "2001470"]
[WhiteElo "2208"]
[BlackElo "2117"]
[Result "0-1"]
[Round "05"]
[TimeControl "180+1"]
[Date "2022.11.30"]
[WhiteClock "0:00:01"]
[BlackClock "0:00:31"]

1. e4 {[%clk 0:02:57]}  d6 {[%clk 0:02:54]} 2. d4 {[%clk 0:02:57]}  Nf6 {[%clk 0:02:54]} 3. Nc3 {[%clk 0:02:57]}  c6 {[%clk 0:02:54]} 4. Bc4 {[%clk 0:02:56]}  d5 {[%clk 0:02:53]} 5. exd5 {[%clk 0:02:55]}  cxd5 {[%clk 0:02:53]} 6. Bd3 {[%clk 0:02:51]}  Nc6 {[%clk 0:02:52]} 7. Nge2 {[%clk 0:02:43]}  Bg4 {[%clk 0:02:49]} 8. f3 {[%clk 0:02:41]}  Bh5 {[%clk 0:02:48]} 9. O-O {[%clk 0:02:34]}  e6 {[%clk 0:02:48]} 10. Be3 {[%clk 0:02:22]}  Bd6 {[%clk 0:02:47]} 11. Nb5 {[%clk 0:02:20]}  Bb8 {[%clk 0:02:46]} 12. c4 {[%clk 0:02:17]}  Bg6 {[%clk 0:02:42]} 13. c5 {[%clk 0:02:08]}  a6 {[%clk 0:02:37]} 14. Nd6+ {[%clk 0:01:47]}  Bxd6 {[%clk 0:02:36]} 15. cxd6 {[%clk 0:01:47]}  Qxd6 {[%clk 0:02:36]} 16. Bf4 {[%clk 0:01:45]}  Qe7 {[%clk 0:02:30]} 17. Bxg6 {[%clk 0:01:36]}  hxg6 {[%clk 0:02:29]} 18. Rc1 {[%clk 0:01:30]}  O-O {[%clk 0:02:19]} 19. Qb3 {[%clk 0:01:27]}  Rac8 {[%clk 0:02:16]} 20. Rfe1 {[%clk 0:01:14]}  Qb4 {[%clk 0:01:57]} 21. Qe3 {[%clk 0:00:52]}  Na5 {[%clk 0:01:43]} 22. a3 {[%clk 0:00:47]}  Qb3 {[%clk 0:01:37]} 23. Qxb3 {[%clk 0:00:23]}  Nxb3 {[%clk 0:01:36]} 24. Rc3 {[%clk 0:00:23]}  Rxc3 {[%clk 0:01:28]} 25. bxc3 {[%clk 0:00:20]}  Rc8 {[%clk 0:01:28]} 26. Rb1 {[%clk 0:00:20]}  Na5 {[%clk 0:01:27]} 27. Rb6 {[%clk 0:00:20]}  Nd7 {[%clk 0:01:24]} 28. Rb4 {[%clk 0:00:19]}  b5 {[%clk 0:01:23]} 29. a4 {[%clk 0:00:18]}  Rc4 {[%clk 0:01:21]} 30. axb5 {[%clk 0:00:18]}  axb5 {[%clk 0:01:16]} 31. Rxb5 {[%clk 0:00:18]}  Nc6 {[%clk 0:01:08]} 32. Rb7 {[%clk 0:00:13]}  Nf6 {[%clk 0:01:01]} 33. Bd6 {[%clk 0:00:09]}  g5 {[%clk 0:00:58]} 34. g4 {[%clk 0:00:08]}  Ra4 {[%clk 0:00:54]} 35. Rc7 {[%clk 0:00:07]}  Na5 {[%clk 0:00:53]} 36. Rc8+ {[%clk 0:00:06]}  Kh7 {[%clk 0:00:52]} 37. h4 {[%clk 0:00:04]}  gxh4 {[%clk 0:00:51]} 38. Nf4 {[%clk 0:00:04]}  Nc4 {[%clk 0:00:33]} 39. Be5 {[%clk 0:00:01]}  Nxe5 {[%clk 0:00:31]} 0-1


[Site "https://www.chess.com"]

[Event "Titled Tuesday Blitz November 29 Late 2022"]
[White "Kuzmicz, Krystian"]
[Black "Wirig, Anthony"]
[WhiteFideId "1119125"]
[BlackFideId "615013"]
[WhiteElo "2380"]
[BlackElo "2487"]
[Result "1/2-1/2"]
[Round "05"]
[TimeControl "180+1"]
[Date "2022.11.30"]
[WhiteClock "0:01:03"]
[BlackClock "0:00:19"]

1. e4 {[%clk 0:03:00]}  c5 {[%clk 0:02:59]} 2. d3 {[%clk 0:03:01]}  Nc6 {[%clk 0:02:59]} 3. g3 {[%clk 0:03:01]}  g6 {[%clk 0:02:59]} 4. Bg2 {[%clk 0:03:02]}  Bg7 {[%clk 0:03:00]} 5. f4 {[%clk 0:03:03]}  d6 {[%clk 0:02:59]} 6. Nf3 {[%clk 0:03:03]}  Nh6 {[%clk 0:02:59]} 7. O-O {[%clk 0:03:03]}  O-O {[%clk 0:02:59]} 8. c3 {[%clk 0:02:57]}  f5 {[%clk 0:02:58]} 9. Na3 {[%clk 0:02:56]}  Kh8 {[%clk 0:02:54]} 10. h3 {[%clk 0:02:56]}  e6 {[%clk 0:02:51]} 11. Be3 {[%clk 0:02:54]}  Bd7 {[%clk 0:02:46]} 12. Bf2 {[%clk 0:02:54]}  b6 {[%clk 0:02:42]} 13. Nc2 {[%clk 0:02:54]}  Rc8 {[%clk 0:02:38]} 14. exf5 {[%clk 0:02:54]}  Nxf5 {[%clk 0:02:32]} 15. d4 {[%clk 0:02:54]}  cxd4 {[%clk 0:02:32]} 16. Ncxd4 {[%clk 0:02:54]}  Ncxd4 {[%clk 0:02:29]} 17. Nxd4 {[%clk 0:02:54]}  Nxd4 {[%clk 0:02:20]} 18. Bxd4 {[%clk 0:02:54]}  e5 {[%clk 0:02:11]} 19. Be3 {[%clk 0:02:51]}  Bb5 {[%clk 0:02:00]} 20. Re1 {[%clk 0:02:47]}  Qc7 {[%clk 0:01:52]} 21. Qd2 {[%clk 0:02:35]}  Bc6 {[%clk 0:01:45]} 22. Rad1 {[%clk 0:02:34]}  Bxg2 {[%clk 0:01:44]} 23. Qxg2 {[%clk 0:02:34]}  Rcd8 {[%clk 0:01:37]} 24. Qd5 {[%clk 0:02:33]}  Rf5 {[%clk 0:01:26]} 25. fxe5 {[%clk 0:02:17]}  Rxe5 {[%clk 0:01:20]} 26. Qd3 {[%clk 0:02:11]}  Rde8 {[%clk 0:01:11]} 27. Bf2 {[%clk 0:02:08]}  Rxe1+ {[%clk 0:01:02]} 28. Rxe1 {[%clk 0:02:09]}  Rxe1+ {[%clk 0:01:02]} 29. Bxe1 {[%clk 0:02:10]}  Be5 {[%clk 0:01:01]} 30. Qd5 {[%clk 0:01:59]}  Kg7 {[%clk 0:00:47]} 31. Kg2 {[%clk 0:01:58]}  Qf7 {[%clk 0:00:37]} 32. Qxf7+ {[%clk 0:01:37]}  Kxf7 {[%clk 0:00:38]} 33. Kf3 {[%clk 0:01:37]}  Ke6 {[%clk 0:00:38]} 34. g4 {[%clk 0:01:36]}  d5 {[%clk 0:00:37]} 35. Bf2 {[%clk 0:01:32]}  Bc7 {[%clk 0:00:31]} 36. Bd4 {[%clk 0:01:28]}  a6 {[%clk 0:00:29]} 37. a4 {[%clk 0:01:27]}  b5 {[%clk 0:00:30]} 38. axb5 {[%clk 0:01:26]}  axb5 {[%clk 0:00:30]} 39. b3 {[%clk 0:01:23]}  Bd6 {[%clk 0:00:30]} 40. Ke3 {[%clk 0:01:23]}  Be7 {[%clk 0:00:30]} 41. Kd3 {[%clk 0:01:18]}  Bf8 {[%clk 0:00:30]} 42. Ke3 {[%clk 0:01:13]}  Bh6+ {[%clk 0:00:28]} 43. Kf3 {[%clk 0:01:09]}  Bg5 {[%clk 0:00:25]} 44. Ke2 {[%clk 0:01:07]}  Bf4 {[%clk 0:00:24]} 45. Kf3 {[%clk 0:01:07]}  Bd6 {[%clk 0:00:25]} 46. Ke2 {[%clk 0:01:05]}  h5 {[%clk 0:00:24]} 47. Kf3 {[%clk 0:01:04]}  Bc7 {[%clk 0:00:22]} 48. Ke2 {[%clk 0:01:02]}  hxg4 {[%clk 0:00:22]} 49. hxg4 {[%clk 0:01:02]}  Bd6 {[%clk 0:00:21]} 50. Kf3 {[%clk 0:01:02]}  Bc7 {[%clk 0:00:21]} 51. Ke2 {[%clk 0:01:02]}  Bd6 {[%clk 0:00:21]} 52. Kf3 {[%clk 0:01:03]}  Bb8 {[%clk 0:00:21]} 53. Ke2 {[%clk 0:01:03]}  Bd6 {[%clk 0:00:19]} 1/2-1/2


[Site "https://www.chess.com"]

[Event "Titled Tuesday Blitz November 29 Late 2022"]
[White "Liu, Kelsey"]
[Black "Barbot, Pierre"]
[WhiteFideId "30944481"]
[BlackFideId "663727"]
[WhiteElo "2278"]
[BlackElo "2439"]
[Result "0-1"]
[Round "05"]
[TimeControl "180+1"]
[Date "2022.11.30"]
[WhiteClock "0:00:02"]
[BlackClock "0:00:49"]

1. e4 {[%clk 0:02:58]}  c5 {[%clk 0:02:59]} 2. Nf3 {[%clk 0:02:58]}  Nc6 {[%clk 0:02:59]} 3. Bb5 {[%clk 0:02:57]}  g6 {[%clk 0:02:59]} 4. O-O {[%clk 0:02:54]}  Bg7 {[%clk 0:03:00]} 5. c3 {[%clk 0:02:54]}  Nf6 {[%clk 0:02:59]} 6. Re1 {[%clk 0:02:54]}  O-O {[%clk 0:02:59]} 7. d4 {[%clk 0:02:53]}  d5 {[%clk 0:02:54]} 8. e5 {[%clk 0:02:54]}  Ne4 {[%clk 0:02:54]} 9. Be3 {[%clk 0:02:54]}  cxd4 {[%clk 0:02:52]} 10. cxd4 {[%clk 0:02:54]}  Qb6 {[%clk 0:02:52]} 11. a4 {[%clk 0:02:50]}  a6 {[%clk 0:02:33]} 12. Bxc6 {[%clk 0:02:48]}  bxc6 {[%clk 0:02:34]} 13. Nc3 {[%clk 0:01:45]}  Qxb2 {[%clk 0:02:23]} 14. Nxe4 {[%clk 0:01:44]}  dxe4 {[%clk 0:02:24]} 15. Ng5 {[%clk 0:01:44]}  Bf5 {[%clk 0:02:09]} 16. Rb1 {[%clk 0:01:36]}  Qa3 {[%clk 0:01:52]} 17. Bc1 {[%clk 0:00:59]}  Qd3 {[%clk 0:01:37]} 18. Bb2 {[%clk 0:00:37]}  e3 {[%clk 0:01:19]} 19. Qxd3 {[%clk 0:00:14]}  exf2+ {[%clk 0:01:19]} 20. Kxf2 {[%clk 0:00:14]}  Bxd3 {[%clk 0:01:20]} 21. Rbc1 {[%clk 0:00:14]}  Rac8 {[%clk 0:01:17]} 22. Ba3 {[%clk 0:00:13]}  Rfe8 {[%clk 0:01:14]} 23. g4 {[%clk 0:00:12]}  Bh6 {[%clk 0:01:02]} 24. h4 {[%clk 0:00:04]}  f6 {[%clk 0:01:01]} 25. Rc3 {[%clk 0:00:03]}  fxg5 {[%clk 0:00:56]} 26. hxg5 {[%clk 0:00:04]}  Bxg5 {[%clk 0:00:55]} 27. Rxd3 {[%clk 0:00:04]}  Bh4+ {[%clk 0:00:55]} 28. Ke2 {[%clk 0:00:03]}  Bxe1 {[%clk 0:00:55]} 29. Kxe1 {[%clk 0:00:04]}  Rb8 {[%clk 0:00:54]} 30. Rc3 {[%clk 0:00:03]}  Rb1+ {[%clk 0:00:52]} 31. Ke2 {[%clk 0:00:03]}  Ra1 {[%clk 0:00:52]} 32. a5 {[%clk 0:00:02]}  Kf7 {[%clk 0:00:49]} 0-1


[Site "https://www.chess.com"]